[Event "Fast Chess"]
[Site "ChessKid.com"]
[Date "2020.04.28"]
[Round "1"]
[White "Horvath, Alexander"]
[Black "Gross, Lukas"]
[Result "1-0"]
[ECO "B06"]
[WhiteElo "1309"]
[BlackElo "1142"]
[Annotator "Abzugsschach"]
[PlyCount "49"]
[EventDate "2020.??.??"]
[TimeControl "300+50"]
[WhiteClock "0:03:45"]
[BlackClock "0:02:04"]

1. e4 {[%emt 0:00:48]} g6 {[%emt 0:00:49]} 2. Nc3 {[%emt 0:00:49]} Bg7 {
[%emt 0:00:50]} 3. Nf3 {[%emt 0:00:48]} Nh6 {[%emt 0:00:58]} 4. d4 {[%emt 0:00:
47]} Ng4 {[%emt 0:00:48]} 5. h3 {[%emt 0:00:55]} Nf6 {[%emt 0:00:48]} 6. e5 {
[%emt 0:00:51]} Nh5 {[%emt 0:00:47]} 7. Bd3 {[%emt 0:00:59]} O-O {[%emt 0:00:
48]} 8. Be3 {[%emt 0:00:50]} f6 {[%emt 0:01:02]} 9. exf6 {[%emt 0:00:47]} Nxf6
{[%emt 0:00:48]} 10. Qd2 {[%emt 0:00:59]} Ne8 {[%emt 0:01:12]} 11. O-O-O {
[%emt 0:00:49]} d5 {[%emt 0:01:01]} 12. Bh6 {[%emt 0:00:49]} Bxh6 {[%emt 0:00:
48]} 13. Qxh6 {[%emt 0:00:47]} Nf6 {[%emt 0:00:50]} 14. Ng5 {[%emt 0:01:02]}
Nc6 {[%emt 0:01:00]} 15. Rde1 {[%emt 0:01:59]} Nxd4 {[%emt 0:00:50]} 16. Nb5 {
[%emt 0:01:23]} Nc6 {[%emt 0:00:57]} 17. Ne6 {[%emt 0:01:25]} Bxe6 {[%emt 0:00:
51]} 18. Rxe6 {[%emt 0:00:48]} Nb4 {[%emt 0:00:49]} 19. a3 {[%emt 0:00:57]}
Na2+ {[%emt 0:00:48]} 20. Kb1 {[%emt 0:00:47]} Nb4 {[%emt 0:01:03]} 21. axb4 {
[%emt 0:00:48]} d4 {[%emt 0:00:47]} 22. Rhe1 {[%emt 0:00:55]} Nd5 {[%emt 0:00:
52]} 23. Bc4 {[%emt 0:01:01]} Nf4 {[%emt 0:00:53]} 24. Rxe7+ {[%emt 0:00:57]}
Kh8 {[%emt 0:00:58]} 25. Qxh7# {[%emt 0:00:46] KeenOrangeTeeth won by checkmate
} 1-0

[Event "Fast Chess"]
[Site "ChessKid.com"]
[Date "2020.04.28"]
[Round "2"]
[White "Xu, Yuening"]
[Black "Georgiev, Maximilian"]
[Result "1-0"]
[ECO "B27"]
[WhiteElo "1292"]
[BlackElo "1396"]
[Annotator "Königsangriff, Röntgenangriff"]
[PlyCount "185"]
[EventDate "2020.??.??"]
[TimeControl "300+50"]
[WhiteClock "0:04:55"]
[BlackClock "0:02:37"]

1. e4 {[%emt 0:00:48]} c5 {[%emt 0:00:47]} 2. Nc3 {[%emt 0:00:48]} g6 {[%emt 0:
00:47]} 3. Nf3 {[%emt 0:00:48]} Bg7 {[%emt 0:00:47]} 4. d4 {[%emt 0:00:50]}
cxd4 {[%emt 0:00:47]} 5. Nxd4 {[%emt 0:00:47]} Bxd4 {[%emt 0:00:46]} 6. Qxd4 {
[%emt 0:00:46]} Nf6 {[%emt 0:00:49]} 7. e5 {[%emt 0:00:52]} Nc6 {[%emt 0:00:49]
} 8. Qe3 {[%emt 0:00:54]} Ng4 {[%emt 0:00:49]} 9. Qe4 {[%emt 0:00:54]} Ngxe5 {
[%emt 0:00:49]} 10. Bf4 {[%emt 0:00:55]} d6 {[%emt 0:00:49]} 11. O-O-O {
[%emt 0:00:56]} O-O {[%emt 0:00:47]} 12. Bxe5 {[%emt 0:00:51]} Nxe5 {[%emt 0:
00:50]} 13. f4 {[%emt 0:00:53]} Nc6 {[%emt 0:00:49]} 14. Bb5 {[%emt 0:00:50]}
Bf5 {[%emt 0:00:52]} 15. Qf3 {[%emt 0:00:52]} Bd7 {[%emt 0:00:52]} 16. h3 {
[%emt 0:00:52]} a6 {[%emt 0:00:48]} 17. Bc4 {[%emt 0:00:48]} b5 {[%emt 0:00:48]
} 18. Bd5 {[%emt 0:00:48]} Rc8 {[%emt 0:00:50]} 19. a3 {[%emt 0:00:55]} Na7 {
[%emt 0:00:48]} 20. Bb7 {[%emt 0:00:49]} Rb8 {[%emt 0:00:50]} 21. Bd5 {[%emt 0:
00:48]} Rb6 {[%emt 0:00:53]} 22. Qf2 {[%emt 0:00:51]} e6 {[%emt 0:00:52]} 23.
Be4 {[%emt 0:00:50]} d5 {[%emt 0:00:48]} 24. Bd3 {[%emt 0:00:48]} Re8 {[%emt 0:
00:48]} 25. Rhe1 {[%emt 0:00:50]} Rb7 {[%emt 0:00:48]} 26. g4 {[%emt 0:00:53]}
Nc6 {[%emt 0:00:53]} 27. h4 {[%emt 0:00:48]} Ne7 {[%emt 0:00:48]} 28. h5 {
[%emt 0:00:50]} Qa8 {[%emt 0:00:55]} 29. hxg6 {[%emt 0:01:01]} fxg6 {[%emt 0:
00:47]} 30. Qh4 {[%emt 0:01:00]} b4 {[%emt 0:00:50]} 31. axb4 {[%emt 0:00:48]}
Rxb4 {[%emt 0:00:48]} 32. Rf1 {[%emt 0:00:54]} Qd8 {[%emt 0:00:55]} 33. Qg3 {
[%emt 0:00:47]} Qa5 {[%emt 0:00:52]} 34. f5 {[%emt 0:01:08]} Qa1+ {[%emt 0:00:
49]} 35. Kd2 {[%emt 0:00:50]} Qxb2 {[%emt 0:00:47]} 36. fxe6 {[%emt 0:00:52]}
Bxe6 {[%emt 0:00:49]} 37. Qf3 {[%emt 0:00:53]} Rb3 {[%emt 0:00:56]} 38. Ne2 {
[%emt 0:00:53]} Ra3 {[%emt 0:00:52]} 39. Nf4 {[%emt 0:01:01]} Qb4+ {[%emt 0:00:
51]} 40. Ke2 {[%emt 0:00:52]} Rf8 {[%emt 0:00:57]} 41. Qe3 {[%emt 0:00:50]}
Bxg4+ {[%emt 0:00:54]} 42. Kf2 {[%emt 0:00:56]} Nf5 {[%emt 0:00:47]} 43. Qe5 {
[%emt 0:00:55]} Qc5+ {[%emt 0:01:02]} 44. Ke1 {[%emt 0:00:58]} Bxd1 {[%emt 0:
00:55]} 45. Kxd1 {[%emt 0:00:48]} Ne3+ {[%emt 0:00:50]} 46. Ke2 {[%emt 0:00:51]
} Nxf1 {[%emt 0:00:47]} 47. Kxf1 {[%emt 0:00:48]} h6 {[%emt 0:01:03]} 48. Bxg6
{[%emt 0:00:57]} Qb5+ $4 {[%emt 0:01:00]} 49. Bd3 {[%emt 0:00:56]} Qb1+ {
[%emt 0:01:04]} 50. Ke2 {[%emt 0:00:52]} Qb8 $4 {[%emt 0:01:11]} 51. Qe3 $4 {
[%emt 0:01:05]} Rxf4 $4 {[%emt 0:00:51]} 52. Qe6+ {[%emt 0:00:52]} Kh8 {
[%emt 0:00:58]} 53. Qxh6+ {[%emt 0:00:56]} Kg8 {[%emt 0:00:46]} 54. Qh7+ {
[%emt 0:00:51]} Kf8 {[%emt 0:00:47]} 55. Qh8+ {[%emt 0:00:51]} Ke7 {[%emt 0:00:
51]} 56. Qxb8 {[%emt 0:00:48]} Rf8 {[%emt 0:00:51]} 57. Qe5+ {[%emt 0:00:52]}
Kf7 {[%emt 0:00:50]} 58. Qxd5+ {[%emt 0:00:48]} Kg7 {[%emt 0:00:48]} 59. Qc5 {
[%emt 0:00:51]} Ra1 {[%emt 0:00:53]} 60. Qc3+ {[%emt 0:00:53]} Kg8 {[%emt 0:00:
53]} 61. Qxa1 {[%emt 0:00:46]} Re8+ {[%emt 0:00:50]} 62. Kd2 {[%emt 0:00:52]}
Rf8 {[%emt 0:00:52]} 63. Qxa6 {[%emt 0:00:53]} Rf2+ {[%emt 0:00:48]} 64. Kc3 {
[%emt 0:00:50]} Rf7 {[%emt 0:00:50]} 65. Qg6+ {[%emt 0:00:48]} Rg7 {[%emt 0:00:
50]} 66. Qe6+ {[%emt 0:00:50]} Kh8 {[%emt 0:00:50]} 67. Qe8+ {[%emt 0:00:53]}
Rg8 {[%emt 0:00:47]} 68. Qh5+ {[%emt 0:00:55]} Kg7 {[%emt 0:00:46]} 69. Qh7+ {
[%emt 0:00:48]} Kf8 {[%emt 0:00:47]} 70. Bc4 {[%emt 0:00:50]} Rg3+ {[%emt 0:00:
55]} 71. Kd4 {[%emt 0:00:53]} Rg7 {[%emt 0:00:49]} 72. Qf5+ {[%emt 0:00:50]}
Ke8 {[%emt 0:00:50]} 73. Qe6+ {[%emt 0:00:57]} Kd8 {[%emt 0:00:49]} 74. Qf6+ {
[%emt 0:00:54]} Re7 {[%emt 0:00:47]} 75. Qd6+ {[%emt 0:00:51]} Rd7 {[%emt 0:00:
47]} 76. Qxd7+ {[%emt 0:01:03]} Kxd7 {[%emt 0:00:46]} 77. Bb5+ {[%emt 0:00:47]}
Kd6 {[%emt 0:00:47]} 78. c4 {[%emt 0:00:47]} Kc7 {[%emt 0:00:47]} 79. c5 {
[%emt 0:00:46]} Kb7 {[%emt 0:00:47]} 80. c6+ {[%emt 0:00:48]} Kc7 {[%emt 0:00:
46]} 81. Kd5 {[%emt 0:00:49]} Kd8 {[%emt 0:00:46]} 82. Kd6 {[%emt 0:00:49]} Kc8
{[%emt 0:00:48]} 83. Ba6+ {[%emt 0:00:51]} Kd8 {[%emt 0:00:47]} 84. c7+ {
[%emt 0:00:52]} Ke8 {[%emt 0:00:47]} 85. c8=Q+ {[%emt 0:00:55]} Kf7 {[%emt 0:
00:47]} 86. Bc4+ {[%emt 0:00:53]} Kf6 {[%emt 0:00:47]} 87. Qe6+ {[%emt 0:00:49]
} Kg5 {[%emt 0:00:48]} 88. Ke5 {[%emt 0:00:47]} Kh4 {[%emt 0:00:49]} 89. Kf4 {
[%emt 0:00:48]} Kh5 {[%emt 0:00:47]} 90. Qg4+ {[%emt 0:00:50]} Kh6 {[%emt 0:00:
46]} 91. Kf5 {[%emt 0:00:49]} Kh7 {[%emt 0:00:47]} 92. Kf6 {[%emt 0:00:47]} Kh8
{[%emt 0:00:49]} 93. Qg7# {[%emt 0:00:47] SlimPresentLaptop won by checkmate}
1-0

[Event "Fast Chess"]
[Site "ChessKid.com"]
[Date "2020.04.28"]
[Round "2"]
[White "Li, Patrick"]
[Black "Horvath, Alexander"]
[Result "0-1"]
[ECO "C50"]
[WhiteElo "1060"]
[BlackElo "1313"]
[PlyCount "56"]
[EventDate "2020.??.??"]
[TimeControl "300+50"]
[WhiteClock "0:02:08"]
[BlackClock "0:04:33"]

1. e4 {[%emt 0:00:48]} e5 {[%emt 0:00:48]} 2. Nf3 {[%emt 0:00:46]} Nf6 {
[%emt 0:00:50]} 3. Nc3 {[%emt 0:00:46]} Nc6 {[%emt 0:00:47]} 4. Bc4 {[%emt 0:
00:46]} h6 {[%emt 0:01:02]} 5. O-O {[%emt 0:00:50]} Bc5 {[%emt 0:00:48]} 6. h3
{[%emt 0:00:49]} d6 {[%emt 0:00:50]} 7. d3 {[%emt 0:00:51]} Nd4 {[%emt 0:00:49]
} 8. Nxd4 {[%emt 0:00:52]} exd4 {[%emt 0:00:47]} 9. Nd5 {[%emt 0:00:47]} Nxd5 {
[%emt 0:00:51]} 10. Bxd5 {[%emt 0:00:48]} c6 {[%emt 0:00:53]} 11. Bc4 {[%emt 0:
00:53]} d5 {[%emt 0:00:48]} 12. exd5 {[%emt 0:00:49]} cxd5 {[%emt 0:00:46]} 13.
Bb3 {[%emt 0:00:47]} Be6 {[%emt 0:00:55]} 14. Re1 {[%emt 0:00:54]} O-O {
[%emt 0:00:47]} 15. Qf3 {[%emt 0:00:52]} b6 {[%emt 0:00:56]} 16. Qg3 {[%emt 0:
00:51]} Bd6 {[%emt 0:00:57]} 17. Qf3 {[%emt 0:00:52]} Qc7 {[%emt 0:01:05]} 18.
g3 {[%emt 0:00:54]} Bxh3 {[%emt 0:00:50]} 19. Bxd5 {[%emt 0:00:54]} Rae8 {
[%emt 0:01:03]} 20. Rxe8 {[%emt 0:00:49]} Rxe8 {[%emt 0:00:46]} 21. Bc6 {
[%emt 0:00:55]} Re6 {[%emt 0:01:19]} 22. Bd5 {[%emt 0:00:53]} Rf6 {[%emt 0:00:
49]} 23. Qh5 {[%emt 0:00:51]} Be6 {[%emt 0:01:27]} 24. Bxe6 {[%emt 0:00:54]}
Rxe6 {[%emt 0:00:46]} 25. Qg4 {[%emt 0:00:52]} Qxc2 {[%emt 0:01:07]} 26. Qxd4 {
[%emt 0:00:59]} Re1+ {[%emt 0:01:28]} 27. Kg2 {[%emt 0:00:52]} Qc6+ {[%emt 0:
01:06]} 28. Kh2 {[%emt 0:00:53]} Qh1# {[%emt 0:00:51] KeenOrangeTeeth won by
checkmate} 0-1

[Event "Fast Chess"]
[Site "ChessKid.com"]
[Date "2020.04.28"]
[Round "2"]
[White "Li, Tobias"]
[Black "Sasse, Gabriel"]
[Result "1-0"]
[ECO "C50"]
[WhiteElo "1333"]
[BlackElo "1252"]
[PlyCount "37"]
[EventDate "2020.??.??"]
[TimeControl "300+50"]
[WhiteClock "0:05:27"]
[BlackClock "0:05:18"]

1. e4 {[%emt 0:00:50]} e5 {[%emt 0:00:46]} 2. Nf3 {[%emt 0:00:47]} Nc6 {
[%emt 0:00:46]} 3. Nc3 {[%emt 0:00:46]} Bc5 {[%emt 0:00:46]} 4. Bc4 {[%emt 0:
00:46]} h5 {[%emt 0:00:46]} 5. O-O {[%emt 0:00:46]} Nf6 {[%emt 0:00:48]} 6. d3
{[%emt 0:00:49]} Ng4 {[%emt 0:00:48]} 7. h3 {[%emt 0:00:50]} Nxf2 {[%emt 0:00:
47]} 8. Rxf2 {[%emt 0:00:47]} Bxf2+ {[%emt 0:00:47]} 9. Kxf2 {[%emt 0:00:46]}
O-O {[%emt 0:00:49]} 10. Bg5 {[%emt 0:00:53]} Qe8 {[%emt 0:00:48]} 11. Qe2 {
[%emt 0:00:57]} a6 {[%emt 0:00:47]} 12. a3 {[%emt 0:00:50]} b5 {[%emt 0:00:47]}
13. Bd5 {[%emt 0:00:48]} g6 {[%emt 0:00:58]} 14. Bh6 {[%emt 0:00:51]} Nd4 {
[%emt 0:00:55]} 15. Nxd4 {[%emt 0:00:48]} exd4 {[%emt 0:00:46]} 16. Na2 {
[%emt 0:00:54]} Qe7 {[%emt 0:00:56]} 17. Bxf8 {[%emt 0:00:48]} Qf6+ {[%emt 0:
00:47]} 18. Kg1 {[%emt 0:00:49]} Kxf8 {[%emt 0:00:48]} 19. Bxa8 {[%emt 0:00:48]
OnlyHungryKiwi won by resignation} 1-0

[Event "Fast Chess"]
[Site "ChessKid.com"]
[Date "2020.04.28"]
[Round "3"]
[White "Horvath, Alexander"]
[Black "Xu, Yuening"]
[Result "1-0"]
[ECO "C55"]
[WhiteElo "1321"]
[BlackElo "1273"]
[PlyCount "51"]
[EventDate "2020.??.??"]
[TimeControl "300+50"]
[WhiteClock "0:04:28"]
[BlackClock "0:04:06"]

1. e4 {[%emt 0:00:47]} e5 {[%emt 0:00:47]} 2. Nf3 {[%emt 0:00:49]} Nc6 {
[%emt 0:00:46]} 3. Nc3 {[%emt 0:00:50]} Nf6 {[%emt 0:00:46]} 4. Bc4 {[%emt 0:
00:49]} Nxe4 {[%emt 0:00:49]} 5. Nxe4 {[%emt 0:00:48]} d5 {[%emt 0:00:48]} 6.
Bxd5 {[%emt 0:00:58]} Qxd5 {[%emt 0:00:47]} 7. Nc3 {[%emt 0:00:47]} Qd8 {
[%emt 0:00:48]} 8. d3 {[%emt 0:00:53]} Bb4 {[%emt 0:00:47]} 9. Bg5 {[%emt 0:00:
48]} f6 {[%emt 0:00:48]} 10. a3 {[%emt 0:00:50]} Bc5 {[%emt 0:00:48]} 11. Be3 {
[%emt 0:00:51]} Bxe3 {[%emt 0:00:49]} 12. fxe3 {[%emt 0:00:46]} Bg4 {[%emt 0:
00:47]} 13. O-O {[%emt 0:00:48]} Qd7 {[%emt 0:00:54]} 14. Qd2 {[%emt 0:00:51]}
Qf5 {[%emt 0:00:53]} 15. e4 {[%emt 0:00:54]} Qh5 {[%emt 0:00:53]} 16. Nd5 {
[%emt 0:00:55]} O-O-O {[%emt 0:00:51]} 17. a4 {[%emt 0:01:06]} a6 {[%emt 0:00:
59]} 18. b4 {[%emt 0:00:50]} g5 {[%emt 0:00:48]} 19. b5 {[%emt 0:00:47]} axb5 {
[%emt 0:00:52]} 20. axb5 {[%emt 0:00:47]} Nd4 {[%emt 0:01:01]} 21. b6 {[%emt 0:
01:16]} Nxf3+ {[%emt 0:01:01]} 22. gxf3 {[%emt 0:00:50]} Bxf3 {[%emt 0:00:53]}
23. bxc7 {[%emt 0:01:04]} Qg4+ {[%emt 0:00:59]} 24. Kf2 {[%emt 0:00:47]} Qg2+ {
[%emt 0:00:52]} 25. Ke1 {[%emt 0:00:49]} Rd7 {[%emt 0:00:58]} 26. Ra8# {
[%emt 0:00:57] KeenOrangeTeeth won by checkmate} 1-0

[Event "Fast Chess"]
[Site "ChessKid.com"]
[Date "2020.04.28"]
[Round "3"]
[White "Gross, Lukas"]
[Black "Georgiev, Maximilian"]
[Result "0-1"]
[ECO "A00"]
[WhiteElo "1139"]
[BlackElo "1399"]
[PlyCount "126"]
[EventDate "2020.??.??"]
[TimeControl "300+50"]
[WhiteClock "0:06:11"]
[BlackClock "0:05:27"]

1. g3 {[%emt 0:00:47]} c5 {[%emt 0:00:47]} 2. Bg2 {[%emt 0:00:47]} g6 {[%emt 0:
00:46]} 3. Nh3 {[%emt 0:00:47]} Bg7 {[%emt 0:00:47]} 4. O-O {[%emt 0:00:47]} e6
{[%emt 0:00:46]} 5. d3 {[%emt 0:00:48]} Ne7 {[%emt 0:00:46]} 6. Bg5 {[%emt 0:
00:48]} O-O {[%emt 0:00:47]} 7. Qd2 {[%emt 0:00:50]} f6 {[%emt 0:00:48]} 8. Be3
{[%emt 0:00:50]} b6 {[%emt 0:00:53]} 9. Bxa8 {[%emt 0:00:50]} Nbc6 {[%emt 0:00:
47]} 10. Bxc6 {[%emt 0:00:49]} dxc6 {[%emt 0:00:46]} 11. Nf4 {[%emt 0:00:52]}
f5 {[%emt 0:00:47]} 12. Ng2 {[%emt 0:00:49]} Bxb2 {[%emt 0:00:47]} 13. Bh6 {
[%emt 0:00:53]} Bxa1 {[%emt 0:00:49]} 14. Qg5 {[%emt 0:00:49]} Bf6 {[%emt 0:00:
54]} 15. Qxf6 {[%emt 0:00:49]} Rxf6 {[%emt 0:00:47]} 16. Bg5 {[%emt 0:00:50]}
Rf7 {[%emt 0:00:47]} 17. Bxe7 {[%emt 0:00:50]} Rxe7 {[%emt 0:00:48]} 18. Nc3 {
[%emt 0:00:48]} Qd4 {[%emt 0:00:48]} 19. Nd1 {[%emt 0:00:50]} Qa4 {[%emt 0:00:
50]} 20. Nc3 {[%emt 0:00:52]} Qxc2 {[%emt 0:00:48]} 21. Nd1 {[%emt 0:00:58]}
Qxe2 {[%emt 0:00:49]} 22. Nde3 {[%emt 0:00:54]} Qxa2 {[%emt 0:00:51]} 23. h4 {
[%emt 0:00:59]} Ba6 {[%emt 0:00:47]} 24. Nf4 {[%emt 0:00:52]} Qd2 {[%emt 0:00:
50]} 25. Rd1 {[%emt 0:00:49]} Qa2 {[%emt 0:00:55]} 26. h5 {[%emt 0:00:52]} gxh5
{[%emt 0:00:48]} 27. Nxh5 {[%emt 0:00:48]} Qa3 {[%emt 0:00:55]} 28. Nf4 {
[%emt 0:00:50]} e5 {[%emt 0:00:49]} 29. Nh5 {[%emt 0:00:52]} Bxd3 {[%emt 0:00:
49]} 30. Nf6+ {[%emt 0:00:48]} Kf7 {[%emt 0:00:50]} 31. Nxh7 {[%emt 0:00:49]}
Be2 {[%emt 0:00:50]} 32. Rd8 {[%emt 0:00:51]} Kg7 {[%emt 0:00:56]} 33. Nf8 {
[%emt 0:00:57]} Qa1+ {[%emt 0:01:00]} 34. Kg2 {[%emt 0:00:48]} Qf1+ {[%emt 0:
00:51]} 35. Nxf1 {[%emt 0:00:52]} Bxf1+ {[%emt 0:00:50]} 36. Kxf1 {[%emt 0:00:
47]} f4 {[%emt 0:00:49]} 37. gxf4 {[%emt 0:00:49]} exf4 {[%emt 0:00:46]} 38.
Kg2 {[%emt 0:00:57]} Kf6 {[%emt 0:00:47]} 39. Nd7+ {[%emt 0:00:57]} Ke6 {
[%emt 0:00:51]} 40. Nf8+ {[%emt 0:00:49]} Kf7 {[%emt 0:00:48]} 41. Nh7 {
[%emt 0:00:50]} Kg6 {[%emt 0:00:52]} 42. Nf8+ {[%emt 0:00:49]} Kg7 {[%emt 0:00:
47]} 43. Nd7 {[%emt 0:00:51]} Kh6 {[%emt 0:00:53]} 44. Nb8 {[%emt 0:00:50]} Re6
{[%emt 0:00:49]} 45. Kf3 {[%emt 0:00:50]} c4 {[%emt 0:00:46]} 46. Kxf4 {
[%emt 0:00:47]} c3 {[%emt 0:00:46]} 47. Rc8 {[%emt 0:00:46]} c2 {[%emt 0:00:53]
} 48. Nxc6 {[%emt 0:00:48]} c1=Q+ {[%emt 0:00:48]} 49. Kg4 {[%emt 0:00:48]}
Qg1+ {[%emt 0:00:48]} 50. Kh4 {[%emt 0:00:48]} Re4+ {[%emt 0:00:50]} 51. Kh3 {
[%emt 0:00:47]} Qg4+ {[%emt 0:00:47]} 52. Kh2 {[%emt 0:00:47]} Qxc8 {[%emt 0:
00:52]} 53. Nxa7 {[%emt 0:00:47]} Qb7 {[%emt 0:00:49]} 54. Nb5 {[%emt 0:00:48]}
Qc6 {[%emt 0:00:48]} 55. Na3 {[%emt 0:00:48]} Qd6+ {[%emt 0:00:48]} 56. Kg1 {
[%emt 0:00:48]} Qxa3 {[%emt 0:00:47]} 57. Kf1 {[%emt 0:00:49]} Qc1+ {[%emt 0:
00:49]} 58. Kg2 {[%emt 0:00:48]} Rg4+ {[%emt 0:00:46]} 59. Kh3 {[%emt 0:00:48]}
Kg5 {[%emt 0:00:46]} 60. Kh2 {[%emt 0:00:47]} Rh4+ {[%emt 0:00:49]} 61. Kg3 {
[%emt 0:00:48]} Qc3+ {[%emt 0:00:47]} 62. Kg2 {[%emt 0:00:47]} Qh3+ {[%emt 0:
00:48]} 63. Kg1 {[%emt 0:00:47]} Rg4# {[%emt 0:00:46] TallSnazzyBall won by
checkmate} 0-1

[Event "Fast Chess"]
[Site "ChessKid.com"]
[Date "2020.04.28"]
[Round "3"]
[White "Li, Patrick"]
[Black "Li, Tobias"]
[Result "1/2-1/2"]
[ECO "C55"]
[WhiteElo "1065"]
[BlackElo "1328"]
[PlyCount "73"]
[EventDate "2020.??.??"]
[TimeControl "300+50"]
[WhiteClock "0:03:35"]
[BlackClock "0:02:47"]

1. e4 {[%emt 0:00:48]} e5 {[%emt 0:00:47]} 2. Nf3 {[%emt 0:00:46]} Nc6 {
[%emt 0:00:46]} 3. Nc3 {[%emt 0:00:47]} Bc5 {[%emt 0:00:46]} 4. Bc4 {[%emt 0:
00:48]} Nf6 {[%emt 0:00:48]} 5. Ng5 {[%emt 0:00:48]} O-O {[%emt 0:00:47]} 6.
O-O {[%emt 0:00:52]} h6 {[%emt 0:00:47]} 7. Nxf7 {[%emt 0:00:51]} Rxf7 {
[%emt 0:00:47]} 8. Bxf7+ {[%emt 0:00:48]} Kxf7 {[%emt 0:00:46]} 9. Re1 {
[%emt 0:00:53]} d6 {[%emt 0:00:53]} 10. Qe2 {[%emt 0:00:50]} Bg4 {[%emt 0:00:
50]} 11. Qc4+ {[%emt 0:00:48]} Kf8 {[%emt 0:00:51]} 12. Qb5 {[%emt 0:00:52]} a6
{[%emt 0:00:48]} 13. Qxb7 {[%emt 0:00:50]} Kg8 {[%emt 0:00:50]} 14. Qxc6 {
[%emt 0:00:51]} Bd4 {[%emt 0:01:08]} 15. Nd5 {[%emt 0:00:55]} Nxd5 {[%emt 0:00:
49]} 16. Qxd5+ {[%emt 0:00:51]} Kh8 {[%emt 0:00:54]} 17. c3 {[%emt 0:00:52]}
Ba7 {[%emt 0:00:49]} 18. h3 {[%emt 0:00:53]} Bh5 {[%emt 0:00:52]} 19. Qd3 {
[%emt 0:01:05]} Qf6 {[%emt 0:00:56]} 20. Rf1 {[%emt 0:00:52]} Be8 {[%emt 0:01:
04]} 21. Qxa6 {[%emt 0:00:52]} Bd7 {[%emt 0:00:50]} 22. Qd3 {[%emt 0:00:54]}
Qg5 {[%emt 0:00:52]} 23. Qf3 {[%emt 0:01:01]} Qg6 {[%emt 0:00:53]} 24. d3 {
[%emt 0:00:57]} Re8 {[%emt 0:01:05]} 25. Qg3 {[%emt 0:01:05]} Qf6 {[%emt 0:00:
54]} 26. Qh2 {[%emt 0:01:10]} Qg6 {[%emt 0:00:49]} 27. g3 {[%emt 0:00:51]} Qh5
{[%emt 0:00:53]} 28. g4 {[%emt 0:00:54]} Qh4 {[%emt 0:00:52]} 29. Bf4 {[%emt 0:
00:59]} exf4 {[%emt 0:00:51]} 30. Qxf4 {[%emt 0:00:51]} Qxh3 {[%emt 0:01:00]}
31. Qf7 {[%emt 0:00:54]} Qxg4+ {[%emt 0:00:59]} 32. Kh1 {[%emt 0:00:49]} Qh3+ {
[%emt 0:00:58]} 33. Kg1 {[%emt 0:00:50]} Qg3+ {[%emt 0:00:48]} 34. Kh1 {
[%emt 0:00:48]} Qh4+ {[%emt 0:01:02]} 35. Kg1 {[%emt 0:00:49]} Rd8 {[%emt 0:00:
57]} 36. Qe7 {[%emt 0:00:57]} Qxe7 {[%emt 0:00:48]} 37. Kh1 {[%emt 0:01:25]
Game drawn by agreement} 1/2-1/2

[Event "Fast Chess"]
[Site "ChessKid.com"]
[Date "2020.04.29"]
[Round "1"]
[White "Li, Tobias"]
[Black "Georgiev, Maximilian"]
[Result "1-0"]
[ECO "A30"]
[WhiteElo "1305"]
[BlackElo "1393"]
[PlyCount "63"]
[EventDate "2020.??.??"]
[TimeControl "600"]
[WhiteClock "0:07:58"]
[BlackClock "0:06:54"]

1. e4 {[%emt 0:00:04]} c5 {[%emt 0:00:01]} 2. Nf3 {[%emt 0:00:02]} g6 {[%emt 0:
00:01]} 3. c4 {[%emt 0:00:04]} Bg7 {[%emt 0:00:01]} 4. Nc3 {[%emt 0:00:00]} e6
{[%emt 0:00:01]} 5. d3 {[%emt 0:00:01]} Ne7 {[%emt 0:00:02]} 6. Bg5 {[%emt 0:
00:02]} O-O {[%emt 0:00:02]} 7. Be2 {[%emt 0:00:02]} f6 {[%emt 0:00:01]} 8. Bh4
{[%emt 0:00:02]} Nbc6 {[%emt 0:00:01]} 9. O-O {[%emt 0:00:01]} a6 {[%emt 0:00:
09]} 10. h3 {[%emt 0:00:05]} b6 {[%emt 0:00:02]} 11. a3 {[%emt 0:00:03]} Nd4 {
[%emt 0:00:02]} 12. Bg3 {[%emt 0:00:05]} Nb3 $4 {[%emt 0:00:03]} 13. Qxb3 {
[%emt 0:00:09]} Rf7 {[%emt 0:00:09]} 14. Qd1 {[%emt 0:00:03]} Bb7 {[%emt 0:00:
03]} 15. Re1 {[%emt 0:00:10]} Rf8 {[%emt 0:00:03]} 16. Bd6 {[%emt 0:00:05]} Re8
{[%emt 0:00:02]} 17. Rb1 {[%emt 0:00:23]} Nc8 {[%emt 0:00:03]} 18. Bh2 {
[%emt 0:00:03]} Na7 {[%emt 0:00:03]} 19. b4 {[%emt 0:00:05]} cxb4 {[%emt 0:00:
02]} 20. axb4 {[%emt 0:00:04]} f5 {[%emt 0:00:02]} 21. Rc1 {[%emt 0:00:10]}
fxe4 {[%emt 0:00:03]} 22. dxe4 {[%emt 0:00:01]} Bxc3 {[%emt 0:00:04]} 23. Rxc3
{[%emt 0:00:03]} Bxe4 {[%emt 0:00:01]} 24. Bf1 {[%emt 0:00:12]} Qf6 {[%emt 0:
00:04]} 25. Ra3 {[%emt 0:00:11]} Bxf3 {[%emt 0:00:05]} 26. Qxf3 {[%emt 0:00:20]
} Qd8 {[%emt 0:00:13]} 27. Rxa6 {[%emt 0:00:06]} Rf8 {[%emt 0:00:05]} 28. Qb7 {
[%emt 0:00:06]} Qf6 {[%emt 0:00:17]} 29. Bg3 {[%emt 0:00:09]} Rfb8 {[%emt 0:00:
08]} 30. Bxb8 {[%emt 0:00:08]} Rxb8 {[%emt 0:00:06]} 31. Qxb8+ {[%emt 0:00:03]}
Kg7 {[%emt 0:00:03]} 32. Rxa7 {[%emt 0:00:05] OnlyHungryKiwi won by resignation
} 1-0